bitfinex/quotes_BTCUSD_20250604
["timestamp","ask_amount","ask_price","bid_price","bid_amount"]
[1749047931445,0.42096682,104590.0,104580.0,0.22290124]
[1749047932575,0.36925817,104590.0,104580.0,0.06226124]
[1749047932787,0.40115817,104590.0,104580.0,0.20740124]
[1749047933044,0.41385717,104590.0,104580.0,0.20728124]
[1749047933254,0.36925817,104590.0,104580.0,0.22268124]
[1749047933462,0.36925817,104590.0,104580.0,0.23778124]
[1749047933880,0.36925817,104590.0,104580.0,0.22268124]
[1749047934533,0.36925817,104590.0,104580.0,0.20728124]
[1749047935196,0.36925817,104590.0,104580.0,0.21624085]
[1749047935426,0.36925817,104590.0,104580.0,0.20728124]
[1749047935644,0.36925817,104590.0,104580.0,0.21624083]
[1749047935854,0.36925817,104590.0,104580.0,0.20728124]
[1749047936486,0.36925817,104590.0,104580.0,0.21624083]
[1749047936715,0.41439018,104590.0,104580.0,0.00348124]
[1749047936921,0.41439018,104590.0,104580.0,0.20724124]
[1749047937131,0.38535817,104590.0,104580.0,0.20724124]
[1749047937340,0.36925817,104590.0,104580.0,0.20724124]
[1749047939550,0.36925817,104590.0,104580.0,0.00348124]
[1749047939981,0.60105817,104590.0,104580.0,0.00348124]
[1749047940191,0.61017456,104590.0,104580.0,0.06194124]
[1749047940420,0.61017456,104590.0,104580.0,0.07774124]
[1749047940836,0.61017292,104590.0,104580.0,0.23834124]
[1749047942327,0.60105817,104590.0,104580.0,0.23834124]
[1749047945539,0.60105817,104590.0,104580.0,0.24726519]
[1749047945782,0.60105817,104590.0,104580.0,0.23834124]
[1749047945987,0.02925817,104590.0,104580.0,0.23834124]
[1749047946425,0.34,104600.0,104590.0,0.0151]
[1749047947101,0.34,104600.0,104590.0,0.0302]
[1749047947985,0.00911883,104610.0,104590.0,0.09824454]
[1749047948200,0.41594096,104620.0,104600.0,0.19072]
[1749047948422,0.41594096,104620.0,104610.0,0.04316]
[1749047949482,0.43234096,104620.0,104610.0,0.04316]
[1749047949953,0.44954096,104620.0,104610.0,0.20368]
[1749047950404,0.45865979,104620.0,104610.0,0.20368]
[1749047950858,0.44954096,104620.0,104610.0,0.20368]
[1749047951072,0.45254096,104620.0,104610.0,0.20368]
[1749047951282,0.53703305,104620.0,104610.0,0.20368]
[1749047951519,5.73407507,104620.0,104610.0,0.04316]
[1749047951736,5.77796713,104620.0,104590.0,0.0154]
[1749047951946,0.34,104600.0,104590.0,0.0154]
[1749047952191,0.34,104600.0,104590.0,0.21908]
[1749047952621,0.40236174,104600.0,104590.0,0.21908]
[1749047957281,0.34,104600.0,104590.0,0.219]
[1749047958636,0.33899587,104600.0,104590.0,0.219]
[1749047958855,0.33899587,104600.0,104590.0,0.0154]
[1749047959069,0.33899587,104600.0,104590.0,0.219]
[1749047960160,0.33899587,104600.0,104590.0,0.2349]
[1749047960604,0.37651112,104620.0,104600.0,0.0323]
[1749047960818,0.37651112,104620.0,104610.0,0.16044]
[1749047961251,0.40520212,104620.0,104610.0,0.16044]
[1749047961912,0.40720212,104620.0,104610.0,0.16044]
[1749047962125,0.40920212,104620.0,104610.0,0.16044]
[1749047963881,0.40720212,104620.0,104610.0,0.16044]
[1749047964096,0.41020198,104620.0,104610.0,0.16044]
[1749047964311,0.39420198,104620.0,104610.0,0.16044]
[1749047964753,0.38280699,104620.0,104610.0,0.16044]
[1749047965863,0.39420198,104620.0,104610.0,0.16044]
[1749047966731,0.38280699,104620.0,104610.0,0.16044]
[1749047967159,0.36551098,104620.0,104610.0,0.16044]
[1749047967591,0.35411599,104620.0,104610.0,0.16044]
[1749047967818,0.36551098,104620.0,104610.0,0.16044]
[1749047968256,0.38141098,104620.0,104610.0,0.16036]
[1749047968475,0.37001599,104620.0,104610.0,0.16036]
[1749047968698,0.38141098,104620.0,104610.0,0.16036]
[1749047969665,0.61321098,104620.0,104610.0,0.16036]
[1749047969879,0.62981098,104620.0,104610.0,0.16036]
[1749047970310,0.66062988,104620.0,104610.0,0.16036]
[1749047971668,0.6606394,104620.0,104610.0,0.16036]
[1749047971890,0.6298205,104620.0,104610.0,0.16036]
[1749047972554,0.61842022,104620.0,104610.0,0.16036]
[1749047972768,0.62982347,104620.0,104610.0,0.16036]
[1749047973217,0.7350261,104620.0,104590.0,0.0318]
[1749047973439,0.76476028,104620.0,104610.0,0.043]
[1749047973666,0.78205135,104620.0,104610.0,0.043]
[1749047973879,0.79805135,104620.0,104590.0,0.0318]
[1749047974092,0.79805135,104620.0,104590.0,0.0163]
[1749047974093,0.04250189,104610.0,104590.0,0.0163]
[1749047974329,0.05162343,104610.0,104600.0,0.20332]
[1749047975621,0.65211743,104610.0,104600.0,0.20332]
[1749047975836,0.65311743,104610.0,104600.0,0.20332]
[1749047977635,0.62401743,104610.0,104600.0,0.23492]
[1749047977859,0.58392154,104610.0,104600.0,0.21982]
[1749047979856,0.58392154,104610.0,104600.0,0.23552]
[1749047980749,0.5748,104610.0,104600.0,0.23552]
[1749047980970,0.58392673,104610.0,104600.0,0.23552]
[1749047982170,0.58392673,104610.0,104600.0,0.21982]
[1749047982682,0.61261773,104610.0,104600.0,0.21982]
[1749047987603,0.61262584,104610.0,104600.0,0.21982]
[1749047988086,0.61262584,104610.0,104600.0,0.23632]
[1749047988318,0.58393484,104610.0,104600.0,0.23632]
[1749047988568,0.003,104610.0,104600.0,0.3321743]
[1749047989570,0.001,104610.0,104600.0,0.3321743]
[1749047989837,0.001,104610.0,104600.0,0.3331743]
[1749047990071,0.34,104630.0,104600.0,0.3331743]
[1749047990284,0.34,104630.0,104620.0,0.0318]
[1749047990495,0.34,104630.0,104620.0,0.19204]
[1749047991568,0.34109193,104630.0,104620.0,0.19204]
[1749047992484,0.34309193,104630.0,104620.0,0.19204]
[1749047994366,0.00309193,104630.0,104620.0,0.2878943]
[1749047995466,0.00109193,104630.0,104620.0,0.2878943]
[1749047996340,9.193e-05,104630.0,104620.0,0.2878943]
[1749047997009,9.193e-05,104630.0,104620.0,0.2908943]
[1749047997217,9.193e-05,104630.0,104620.0,0.2938943]
[1749048001120,9.193e-05,104630.0,104620.0,0.33261213]
[1749048002504,9.193e-05,104630.0,104620.0,0.2938943]
[1749048003889,9.193e-05,104630.0,104620.0,0.33248025]
[1749048005964,9.193e-05,104630.0,104620.0,0.2938943]
[1749048006190,9.193e-05,104630.0,104620.0,0.1336543]
[1749048006405,9.193e-05,104630.0,104620.0,0.2936943]
[1749048008151,9.193e-05,104630.0,104620.0,0.3266814]
[1749048009448,9.193e-05,104630.0,104620.0,0.2936943]
[1749048011658,9.193e-05,104630.0,104620.0,0.3913705]
[1749048011894,9.193e-05,104630.0,104620.0,0.4200415]
[1749048012117,9.193e-05,104630.0,104620.0,0.4700415]
[1749048012764,9.193e-05,104630.0,104620.0,0.4670415]
[1749048012972,9.193e-05,104630.0,104620.0,0.8070415]
[1749048013419,9.193e-05,104630.0,104620.0,0.8040415]
[1749048013635,9.193e-05,104630.0,104620.0,0.8100415]
[1749048014057,9.193e-05,104630.0,104620.0,0.8150415]
[1749048014696,0.0845574,104660.0,104620.0,0.4860415]
[1749048014923,0.08464951,104660.0,104650.0,0.0152]
[1749048015140,0.08464951,104660.0,104650.0,0.5201743]
[1749048015585,0.08464951,104660.0,104650.0,0.5359743]
[1749048017331,0.08464951,104660.0,104650.0,0.6109743]
[1749048017775,0.00903344,104660.0,104650.0,0.6109743]
[1749048019125,0.00903344,104660.0,104650.0,0.96551515]
[1749048019342,0.00903344,104660.0,104650.0,1.09417715]
[1749048019343,0.00869959,104660.0,104650.0,1.09417715]
[1749048019773,0.00869959,104660.0,104650.0,1.09617715]
[1749048020210,0.00869959,104660.0,104650.0,1.09417715]
[1749048020420,0.00869959,104660.0,104650.0,1.10217715]
[1749048021097,0.00869959,104660.0,104650.0,1.10017715]
[1749048021315,0.39164055,104700.0,104690.0,0.0163]
[1749048021527,0.39164055,104700.0,104690.0,0.3148743]
[1749048021528,0.39173266,104700.0,104690.0,0.3148743]
[1749048022370,0.05173266,104700.0,104690.0,0.3300743]
[1749048022583,0.08453899,104700.0,104690.0,0.3158743]
[1749048022823,0.08453899,104700.0,104690.0,0.2995743]
[1749048023035,0.14228732,104700.0,104690.0,0.2995743]
[1749048023278,0.11703899,104700.0,104690.0,0.2995743]
[1749048023701,0.10043899,104700.0,104690.0,0.2995743]
[1749048024353,0.03289844,104700.0,104690.0,0.3301743]
[1749048025257,9.211e-05,104700.0,104690.0,0.3301743]
[1749048028272,0.02319853,104710.0,104690.0,0.3301743]
[1749048028528,0.3564,104720.0,104700.0,0.1110543]
[1749048028747,0.3714,104720.0,104710.0,0.366]
[1749048028952,0.3714,104720.0,104710.0,0.3020543]
[1749048029165,0.3714,104720.0,104710.0,0.5045743]
[1749048029593,0.40006112,104720.0,104710.0,0.5045743]
[1749048030032,0.43300495,104720.0,104710.0,0.5045743]
[1749048030448,0.43800495,104720.0,104710.0,0.40872]
[1749048030873,0.46671211,104720.0,104710.0,0.40872]
[1749048032000,0.46671211,104720.0,104710.0,0.2062]
[1749048032211,0.49196044,104720.0,104710.0,0.2062]
[1749048032435,0.52543618,104720.0,104710.0,0.40868]
[1749048032643,0.49196044,104720.0,104710.0,0.40868]
[1749048032863,0.46671211,104720.0,104710.0,0.40868]
[1749048033910,0.47565679,104720.0,104710.0,0.40868]
[1749048034117,0.46671211,104720.0,104710.0,0.2062]
[1749048034336,0.46671211,104720.0,104710.0,0.40868]
[1749048035045,0.47565627,104720.0,104710.0,0.40868]
[1749048035259,0.47565631,104720.0,104710.0,0.40868]
[1749048035471,0.46671211,104720.0,104710.0,0.40868]
[1749048036647,0.47565648,104720.0,104710.0,0.40868]
[1749048036874,0.46671211,104720.0,104710.0,0.40868]
[1749048037097,0.47565636,104720.0,104710.0,0.40868]
[1749048037318,0.46671211,104720.0,104710.0,0.40868]
[1749048037541,0.4756564,104720.0,104710.0,0.40868]
[1749048037766,0.47565608,104720.0,104710.0,0.40868]
[1749048037994,0.46671211,104720.0,104710.0,0.40868]
[1749048039826,0.46671211,104720.0,104710.0,0.40864]
[1749048040285,0.46671211,104720.0,104710.0,0.24892]
[1749048040497,0.46671211,104720.0,104710.0,0.40864]
[1749048042018,0.47581779,104720.0,104710.0,0.40864]
[1749048042255,0.49370405,104720.0,104710.0,0.40864]
[1749048042765,0.511589,104720.0,104710.0,0.40864]
[1749048043027,0.52613001,104720.0,104710.0,0.24892]
[1749048043312,0.519627,104720.0,104710.0,0.4086]
[1749048044209,0.5375118,104720.0,104710.0,0.4086]
[1749048044413,0.519627,104720.0,104710.0,0.4086]
[1749048044624,0.54645479,104720.0,104710.0,0.4086]
[1749048044857,0.519627,104720.0,104710.0,0.4086]
[1749048045094,0.51966183,104720.0,104710.0,0.4086]
[1749048045323,0.53754737,104720.0,104710.0,0.4086]
[1749048045574,0.51966183,104720.0,104710.0,0.4086]
[1749048046270,0.53754639,104720.0,104710.0,0.4086]
[1749048046508,0.75146183,104720.0,104710.0,0.4086]
[1749048046735,0.76040439,104720.0,104710.0,0.4086]
[1749048046981,0.75146183,104720.0,104710.0,0.4086]
[1749048047415,0.76668657,104720.0,104710.0,0.4086]
[1749048048069,0.77562984,104720.0,104710.0,0.4086]
[1749048048304,0.76668657,104720.0,104710.0,0.40856]
[1749048048545,5.43584085,104710.0,104670.0,0.20616]
[1749048048805,0.0313,104690.0,104680.0,0.20236]
[1749048049045,0.02702794,104690.0,104680.0,0.2982143]
[1749048049283,0.02702794,104690.0,104680.0,0.3133143]
[1749048049284,0.00914265,104690.0,104680.0,0.3133143]
[1749048049515,0.00914265,104690.0,104680.0,0.3296143]
[1749048049967,0.01808606,104690.0,104680.0,0.3296143]
[1749048050197,0.00914265,104690.0,104680.0,0.3296143]
[1749048050462,0.00894345,104690.0,104680.0,0.3296143]
[1749048051141,0.00894345,104690.0,104680.0,0.3316143]
[1749048051380,0.00894345,104690.0,104680.0,0.3336143]
[1749048056139,0.00894345,104690.0,104680.0,0.1149543]
[1749048056385,0.00894345,104690.0,104680.0,0.1304543]
[1749048056617,0.00894345,104690.0,104680.0,0.3171543]
[1749048062577,0.00894345,104690.0,104680.0,0.3333543]
[1749048064702,0.00894345,104690.0,104680.0,0.36706178]
[1749048065393,0.00894345,104690.0,104680.0,0.36306178]
[1749048065670,0.00894345,104690.0,104680.0,0.37006178]
[1749048068826,0.00894345,104690.0,104680.0,0.38460263]
[1749048069518,0.00894345,104690.0,104680.0,0.48460263]
[1749048069744,0.00894345,104690.0,104680.0,0.51325563]
[1749048071324,0.03766389,104710.0,104700.0,0.0306]
[1749048071546,0.03766389,104710.0,104700.0,0.2859743]
[1749048073110,0.03766389,104710.0,104700.0,0.3752143]
[1749048073346,0.37766389,104710.0,104700.0,0.3456143]
[1749048073564,0.39396389,104710.0,104700.0,0.5050943]
[1749048075547,0.41026389,104710.0,104700.0,0.5050943]
[1749048075992,0.41026389,104710.0,104700.0,0.3030143]
[1749048076440,0.41026389,104710.0,104700.0,0.5050943]
[1749048077805,0.41026389,104710.0,104700.0,0.40924]
[1749048078038,0.41026389,104710.0,104700.0,0.20716]
[1749048078256,0.43392909,104710.0,104700.0,0.24976]
[1749048078476,0.43392909,104710.0,104650.0,0.1087178]
[1749048078477,0.0308,104680.0,104650.0,0.0903]
[1749048078692,0.0308,104680.0,104660.0,0.0958543]
[1749048079745,0.0308,104680.0,104670.0,0.15944]
[1749048079974,0.0325,104670.0,104660.0,9.211e-05]
[1749048080202,0.0325,104670.0,104660.0,0.15953211]
[1749048080845,0.0325,104670.0,104660.0,0.16253211]
[1749048081361,0.0325,104670.0,104660.0,0.15953211]
[1749048081577,0.0325,104670.0,104660.0,0.16053211]
[1749048081809,0.06069295,104670.0,104660.0,0.16053211]
[1749048083047,0.06069295,104670.0,104660.0,0.25877488]
[1749048083275,0.04479295,104670.0,104660.0,0.25638641]
[1749048083503,0.02819295,104670.0,104660.0,0.25638641]
[1749048083747,0.3555,104690.0,104660.0,0.25638641]
[1749048083974,0.0155,104680.0,104670.0,0.09824249]
[1749048084195,0.0319,104680.0,104670.0,0.30028249]
[1749048084420,0.0319,104680.0,104670.0,0.2978943]
[1749048084838,0.0319,104680.0,104670.0,0.2978543]
[1749048085090,0.0329,104680.0,104670.0,0.2978543]
[1749048085524,0.001,104680.0,104670.0,0.2978543]
[1749048086872,0.003,104680.0,104670.0,0.2978543]
[1749048087326,0.032,104690.0,104670.0,0.2978543]
[1749048087823,0.032,104690.0,104670.0,0.2988543]
[1749048089015,0.37538425,104700.0,104680.0,0.00238811]
[1749048089241,0.37538425,104700.0,104690.0,0.15944]
[1749048089690,0.032,104690.0,104670.0,0.001]
[1749048089904,0.032,104690.0,104670.0,0.0958543]
[1749048090120,0.36048425,104700.0,104680.0,0.30020231]
[1749048090374,0.37968425,104700.0,104680.0,0.30020231]
[1749048090581,0.37868425,104700.0,104680.0,0.2978143]
[1749048091246,0.37668425,104700.0,104680.0,0.2978143]
[1749048091465,0.37768425,104700.0,104680.0,0.2978143]
[1749048091921,0.0323,104690.0,104660.0,0.23685211]
[1749048092146,0.357,104700.0,104680.0,0.0958543]
[1749048092373,0.357,104700.0,104690.0,0.2552943]
[1749048092627,0.001,104700.0,104690.0,0.2552943]
[1749048093117,0.003,104700.0,104690.0,0.2552943]
[1749048093598,0.40996389,104710.0,104690.0,0.2552943]
[1749048093805,0.40996389,104710.0,104700.0,0.04252]
[1749048094058,0.40996389,104710.0,104700.0,0.1383743]
[1749048095784,0.40996389,104710.0,104700.0,0.2978143]
[1749048096003,0.41296389,104710.0,104700.0,0.2978143]
[1749048096676,0.41596389,104710.0,104700.0,0.2978143]
[1749048097105,0.41296389,104710.0,104700.0,0.2978143]
[1749048097533,0.41796389,104710.0,104700.0,0.2978143]
[1749048098867,0.40166389,104710.0,104700.0,0.2978143]
[1749048099502,0.41736389,104710.0,104700.0,0.2978143]
[1749048101016,0.41736389,104710.0,104700.0,0.1383743]
[1749048101268,0.41736389,104710.0,104700.0,0.2977743]
[1749048101909,0.40136389,104710.0,104680.0,0.0164]
[1749048102116,0.0317,104700.0,104690.0,0.2977743]
[1749048103720,0.0317,104700.0,104690.0,0.20188]
[1749048103721,0.0337,104700.0,104690.0,0.20188]
[1749048104350,0.0367,104700.0,104690.0,0.20188]
[1749048104876,0.0204,104700.0,104690.0,0.20188]
[1749048105094,0.005,104700.0,104690.0,0.20188]
[1749048105801,0.0214,104700.0,104690.0,0.20188]
[1749048106750,0.005,104700.0,104690.0,0.20188]
[1749048107006,0.005,104700.0,104690.0,0.3142343]
[1749048107492,0.005,104700.0,104690.0,0.3294343]
[1749048108376,0.003,104700.0,104690.0,0.3294343]
[1749048108597,0.003,104700.0,104690.0,0.2987343]
[1749048108788,0.40946389,104710.0,104690.0,0.2987343]
[1749048109888,0.40946389,104710.0,104700.0,0.20188]
[1749048111845,0.41046389,104710.0,104700.0,0.20188]
[1749048112271,0.41246389,104710.0,104700.0,0.20188]
[1749048112495,0.42159298,104710.0,104700.0,0.20188]
[1749048114272,0.42159917,104710.0,104700.0,0.20188]
[1749048115150,0.40619917,104710.0,104700.0,0.20188]
[1749048118353,0.40620927,104710.0,104700.0,0.20188]
[1749048119052,0.38980927,104710.0,104700.0,0.21828]
[1749048119292,0.38980927,104710.0,104700.0,0.20188]
[1749048119596,0.40600927,104710.0,104700.0,0.20188]
[1749048120136,0.40600927,104710.0,104700.0,0.2018]
[1749048121094,0.39686389,104710.0,104700.0,0.2018]
[1749048121413,0.40601804,104710.0,104700.0,0.2018]
[1749048122469,0.41746073,104710.0,104700.0,0.2018]
[1749048122820,0.40126073,104710.0,104700.0,0.2018]
[1749048123025,0.38066389,104710.0,104700.0,0.2018]
[1749048123474,0.39686389,104710.0,104700.0,0.2018]
[1749048124106,0.39686389,104710.0,104690.0,0.3184543]
[1749048124314,0.39686389,104710.0,104700.0,0.20172]
[1749048124941,0.39486389,104710.0,104700.0,0.20172]
[1749048125558,0.39386389,104710.0,104700.0,0.20172]
[1749048126659,0.39586389,104710.0,104700.0,0.20172]
[1749048127435,0.41106389,104710.0,104700.0,0.20172]
[1749048128077,0.41206389,104710.0,104700.0,0.20172]
[1749048128262,0.39686389,104710.0,104700.0,0.20172]
[1749048128417,0.40581216,104710.0,104700.0,0.20172]
[1749048130656,0.42211216,104710.0,104700.0,0.20172]
[1749048132788,0.0308,104700.0,104690.0,0.2062]
[1749048133006,0.03995943,104700.0,104690.0,0.40788]
[1749048133209,0.05140872,104700.0,104690.0,0.40788]
[1749048134072,0.05140872,104700.0,104690.0,0.40888]
[1749048135249,0.03995943,104700.0,104690.0,0.40888]
[1749048135902,0.05140872,104700.0,104690.0,0.40888]
[1749048136338,0.05140872,104700.0,104690.0,0.2072]
[1749048136551,0.39140872,104700.0,104690.0,0.40888]
[1749048137921,0.4003582,104700.0,104690.0,0.40888]
[1749048138311,0.39140872,104700.0,104690.0,0.40888]
[1749048138493,0.40035808,104700.0,104690.0,0.40888]
[1749048138952,0.39140872,104700.0,104690.0,0.40888]
[1749048139381,0.40930768,104700.0,104690.0,0.40888]
[1749048139639,0.4003582,104700.0,104690.0,0.40888]
[1749048140296,0.06033253,104700.0,104690.0,0.24964]
[1749048140511,0.06000016,104700.0,104690.0,0.40884]
[1749048140723,0.05999844,104700.0,104690.0,0.40884]
[1749048141362,0.04814804,104700.0,104690.0,0.40784]
[1749048141573,0.02109674,104700.0,104690.0,0.5193943]
[1749048142225,0.01909674,104700.0,104690.0,0.5193943]
[1749048143339,0.01809674,104700.0,104690.0,0.5193943]
[1749048143552,0.01809674,104700.0,104690.0,0.5203943]
[1749048144896,0.01809559,104700.0,104690.0,0.5203943]
[1749048146247,0.01809559,104700.0,104690.0,0.5046943]
[1749048148683,0.01809559,104700.0,104690.0,0.5357943]
[1749048149143,0.00894948,104700.0,104690.0,0.5357943]
[1749048165059,0.00894948,104700.0,104690.0,0.3765943]
[1749048165275,0.00894948,104700.0,104690.0,0.5356743]
[1749048165528,0.00894948,104700.0,104690.0,0.5195743]
[1749048165952,0.00894948,104700.0,104690.0,0.5354743]
[1749048169245,0.40422364,104710.0,104690.0,0.5354743]
[1749048169459,0.44547468,104710.0,104700.0,0.04236]
[1749048169870,0.44547405,104710.0,104700.0,0.04236]
[1749048171709,0.42897405,104710.0,104700.0,0.04236]
[1749048171936,0.48400994,104710.0,104700.0,0.20144]
[1749048172373,0.47546161,104710.0,104700.0,0.20144]
[1749048172822,0.48889885,104710.0,104700.0,0.20144]
[1749048173041,0.474358,104710.0,104700.0,0.20144]
[1749048173905,0.47434979,104710.0,104700.0,0.20144]
[1749048175448,0.45910308,104710.0,104700.0,0.20144]
[1749048178038,0.45910322,104710.0,104700.0,0.20144]
[1749048178257,0.45910322,104710.0,104700.0,0.04236]
[1749048178470,0.45910322,104710.0,104700.0,0.2014]
[1749048179142,0.45910262,104710.0,104700.0,0.2014]
[1749048180425,0.42780262,104710.0,104700.0,0.2166]
[1749048180665,0.41636985,104710.0,104700.0,0.2166]
[1749048181342,0.41636995,104710.0,104700.0,0.2166]
[1749048183760,0.41636995,104710.0,104700.0,0.2014]
[1749048184456,0.43176995,104710.0,104700.0,0.2014]
[1749048184679,0.42262364,104710.0,104700.0,0.2014]
[1749048184919,0.43176643,104710.0,104700.0,0.2014]
[1749048185346,0.50164209,104710.0,104690.0,0.2216]
[1749048185570,0.47321476,104710.0,104700.0,0.20128]
[1749048185792,0.44455276,104710.0,104700.0,0.20128]
[1749048186009,0.44796743,104710.0,104700.0,0.20128]
[1749048186432,0.43902249,104710.0,104700.0,0.20128]
[1749048186649,0.43902249,104710.0,104700.0,0.04228]
[1749048186876,0.44796736,104710.0,104700.0,0.20128]
[1749048187111,0.43702249,104710.0,104700.0,0.20128]
[1749048187531,0.43702249,104710.0,104700.0,0.04228]
[1749048187733,0.43702249,104710.0,104700.0,0.20128]
[1749048187940,0.44596702,104710.0,104700.0,0.20128]
[1749048188176,0.45939527,104710.0,104700.0,0.20128]
[1749048188388,0.45045097,104710.0,104700.0,0.20128]
[1749048188609,0.45939549,104710.0,104700.0,0.20128]
[1749048188796,0.45045097,104710.0,104700.0,0.20128]
[1749048189021,0.45045213,104710.0,104700.0,0.20128]
[1749048189461,0.45939067,104710.0,104700.0,0.20128]
[1749048189673,0.51136335,104710.0,104690.0,0.2062]
[1749048189945,0.5414042,104710.0,104700.0,0.20128]
[1749048190160,0.5127412,104710.0,104700.0,0.20128]
[1749048190377,0.5290412,104710.0,104700.0,0.20128]
[1749048190594,0.5260412,104710.0,104700.0,0.20128]
[1749048190828,0.060765,104700.0,104690.0,0.2062]
[1749048191044,0.43587828,104700.0,104690.0,0.04228]
[1749048191467,0.43587828,104700.0,104690.0,0.20124]
[1749048191687,0.43587828,104700.0,104680.0,0.20629211]
[1749048191905,0.43587828,104700.0,104690.0,0.20224]
[1749048191906,0.43676283,104700.0,104690.0,0.20224]
[1749048192123,0.40809783,104700.0,104690.0,0.001]
[1749048192329,0.42349783,104700.0,104690.0,0.04228]
[1749048192549,0.45216583,104700.0,104690.0,0.20224]
[1749048192966,0.47002948,104700.0,104690.0,0.20224]
[1749048193179,0.45284458,104700.0,104690.0,0.20124]
[1749048193391,0.45284458,104700.0,104690.0,0.04228]
[1749048193392,0.4686907,104700.0,104690.0,0.04228]
[1749048193592,0.45579556,104700.0,104690.0,0.04228]
[1749048194452,0.47367929,104700.0,104690.0,0.04228]
[1749048194666,0.47567929,104700.0,104690.0,0.20124]
[1749048194863,0.47567974,104700.0,104690.0,0.20124]
[1749048195083,0.47567927,104700.0,104690.0,0.20124]
[1749048195293,0.45879556,104700.0,104690.0,0.20124]
[1749048195699,0.46143323,104700.0,104690.0,0.20124]
[1749048195905,0.44354885,104700.0,104690.0,0.20124]
[1749048197074,0.44353749,104700.0,104690.0,0.20124]
[1749048197506,0.44353749,104700.0,104690.0,0.04228]
[1749048197710,0.44413749,104700.0,104690.0,0.20124]
[1749048198030,0.44413749,104700.0,104690.0,0.04228]
[1749048198264,0.42793749,104700.0,104670.0,0.2223]
[1749048198463,0.0162,104690.0,104670.0,0.3181543]
[1749048198669,0.36533091,104690.0,104670.0,0.1283543]
[1749048199085,0.36533091,104690.0,104680.0,0.15896]
[1749048199502,0.028669,104680.0,104670.0,0.1283543]
[1749048199920,0.028669,104680.0,104670.0,0.0191]
[1749048200559,0.028669,104680.0,104670.0,0.0181]
[1749048200762,0.028669,104680.0,104670.0,0.17806]
[1749048200977,0.028669,104680.0,104670.0,0.16851376]
[1749048201403,0.060969,104680.0,104670.0,7.52e-06]
[1749048201612,0.07549531,104680.0,104650.0,0.0914]
[1749048201825,0.07549531,104680.0,104670.0,0.15896]
[1749048202061,0.04682631,104680.0,104670.0,0.15896]
[1749048202267,0.07009874,104680.0,104670.0,0.002]
[1749048202531,0.07009874,104680.0,104650.0,0.1872543]
[1749048202744,0.07009874,104680.0,104650.0,0.1708543]
[1749048202955,0.04142674,104680.0,104660.0,0.0164]
[1749048203169,0.028672,104670.0,104660.0,0.0164]
[1749048203815,0.028672,104670.0,104660.0,0.15896]
[1749048204237,0.028672,104670.0,104660.0,0.20124]
[1749048205133,0.05780668,104670.0,104660.0,0.20124]
[1749048205600,0.02913468,104670.0,104660.0,0.20124]
[1749048206302,0.02913468,104670.0,104660.0,0.21704]
[1749048206548,0.03013468,104670.0,104660.0,0.21704]
[1749048206784,0.03013468,104670.0,104660.0,0.23294]
[1749048209744,0.03013468,104670.0,104660.0,0.1275543]
[1749048209971,0.03013468,104670.0,104660.0,0.33106259]
[1749048210185,0.03013468,104670.0,104660.0,0.3286743]
[1749048212187,0.01613468,104670.0,104660.0,0.3286743]
[1749048212406,0.002,104670.0,104660.0,0.3286743]
[1749048213057,0.03126304,104670.0,104660.0,0.3286743]
[1749048215933,0.02926304,104670.0,104660.0,0.3286743]
[1749048216137,0.64672603,104690.0,104660.0,0.3296743]
[1749048216337,0.64672603,104690.0,104680.0,0.016]
[1749048216541,0.34912603,104690.0,104680.0,0.2873343]
[1749048217271,0.34,104690.0,104680.0,0.2873343]
[1749048223616,0.34,104690.0,104680.0,0.0958543]
[1749048223867,0.34,104690.0,104680.0,0.2968943]
[1749048226042,0.34,104690.0,104680.0,0.5030943]
[1749048226510,0.34,104690.0,104680.0,0.3442543]
[1749048226750,0.34,104690.0,104680.0,0.5030943]
[1749048229845,0.34,104690.0,104680.0,0.3442543]
[1749048230053,0.34,104690.0,104680.0,0.5030543]
[1749048230274,0.34,104690.0,104680.0,0.5030143]
[1749048231812,0.34,104690.0,104680.0,0.5347143]
[1749048232471,0.01420627,104700.0,104680.0,0.5189143]
[1749048232472,9.198e-05,104700.0,104680.0,0.5189143]
[1749048232701,9.198e-05,104700.0,104690.0,0.129442]
[1749048234903,0.00109198,104700.0,104690.0,0.129442]
[1749048235341,0.00109198,104700.0,104690.0,0.0958543]
[1749048235606,0.00209198,104700.0,104690.0,0.0958543]
[1749048236038,0.01749198,104700.0,104690.0,0.0958543]
[1749048237563,0.03269198,104700.0,104690.0,0.2967743]
[1749048238684,0.03269198,104700.0,104690.0,0.2966943]
[1749048240850,0.04182589,104700.0,104690.0,0.20084]
[1749048241123,0.02662589,104700.0,104690.0,0.20084]
[1749048241344,0.00209198,104700.0,104690.0,0.2966943]
[1749048246874,0.00209198,104700.0,104690.0,0.3117943]
[1749048247763,0.00209198,104700.0,104690.0,0.2966943]
[1749048250102,0.00209198,104700.0,104690.0,0.3128943]
[1749048250329,0.00209198,104700.0,104690.0,0.2966943]
[1749048251774,0.00209198,104700.0,104690.0,0.5028943]
[1749048252923,0.00209198,104700.0,104690.0,0.5028143]
[1749048259799,0.00209198,104700.0,104690.0,0.5179143]
[1749048260277,0.00209198,104700.0,104690.0,0.5028143]
[1749048260854,0.01124545,104700.0,104690.0,0.5028143]
[1749048261938,0.02634545,104700.0,104690.0,0.5027743]
[1749048262568,0.04164545,104700.0,104690.0,0.5027743]
[1749048265852,0.0416521,104700.0,104690.0,0.5027743]
[1749048266541,0.0263521,104700.0,104690.0,0.5027743]
[1749048268057,0.0112521,104700.0,104690.0,0.5027743]
[1749048269607,0.0112521,104700.0,104690.0,0.5338743]
[1749048270063,0.0112513,104700.0,104690.0,0.5338743]
[1749048270962,0.00209198,104700.0,104690.0,0.5338743]
[1749048271214,0.00209198,104700.0,104690.0,0.3331543]
[1749048271431,0.00209198,104700.0,104690.0,0.5337543]
[1749048272331,0.00109198,104700.0,104690.0,0.5337543]
[1749048272548,9.198e-05,104700.0,104690.0,0.5337543]
[1749048275888,9.198e-05,104700.0,104690.0,0.3751543]
[1749048276108,9.198e-05,104700.0,104690.0,0.5337143]
[1749048277497,9.198e-05,104700.0,104690.0,0.3751543]
[1749048277773,9.198e-05,104700.0,104690.0,0.5336743]
[1749048283919,9.198e-05,104700.0,104690.0,0.5336343]
[1749048285728,9.198e-05,104700.0,104690.0,0.3020543]
[1749048285958,9.198e-05,104700.0,104690.0,0.5025343]
[1749048286864,0.03299198,104700.0,104690.0,0.3440143]
[1749048287095,0.03299198,104700.0,104690.0,0.5024943]
[1749048287832,9.198e-05,104700.0,104690.0,0.5024943]